bitfinex/quotes_SOLUSD_20250317
["timestamp","ask_amount","ask_price","bid_price","bid_amount"]
[1742218520654,100.38273497,127.98,127.97,77.6594068]
[1742218520840,100.38273497,127.98,127.97,389.6594068]
[1742218521242,100.38273497,127.98,127.97,397.4737068]
[1742218521454,2.57003497,127.98,127.97,397.90019151]
[1742218521657,3.497e-05,127.98,127.97,416.54984037]
[1742218521856,3.497e-05,127.98,127.97,85.33154523]
[1742218522045,3.497e-05,127.98,127.97,18.65264597]
[1742218522251,0.03,127.97,127.95,7.8153]
[1742218522438,0.03,127.97,127.96,26.81225095]
[1742218523139,0.03,127.97,127.96,34.62715095]
[1742218523854,0.03,127.97,127.96,7.8149]
[1742218524763,0.03,127.97,127.95,34.62755095]
[1742218525259,0.03,127.97,127.96,34.62715095]
[1742218526645,237.99173497,128.01,128.0,20.0]
[1742218526844,237.99173497,128.01,128.0,30.95047257]
[1742218527044,237.99173497,128.01,128.0,57.76272352]
[1742218527245,237.99173497,128.01,128.0,65.57522352]
[1742218527873,153.83133497,128.01,128.0,84.65135709]
[1742218528055,108.88853497,128.01,128.0,84.65135709]
[1742218528256,19.52623497,128.01,128.0,84.65135709]
[1742218528569,3.497e-05,128.01,128.0,436.5180054]
[1742218529161,0.03,128.04,128.03,20.14216157]
[1742218529369,0.03,128.1,128.09,26.81225095]
[1742218529666,0.03,128.1,128.09,34.45225095]
[1742218530855,0.03,128.1,128.09,64.47885709]
[1742218531050,0.03,128.1,128.09,131.15775635]
[1742218531279,2.8002183,128.17,128.14,7.8039]
[1742218531574,2.8002183,128.17,128.16,26.81225095]
[1742218532270,2.8002183,128.17,128.16,123.48775635]
[1742218532567,1.83e-05,128.17,128.16,435.48775635]
[1742218532772,3.67,128.27,128.19,20.0]
[1742218532964,30.48225095,128.27,128.22,26.81225095]
[1742218533268,3.67,128.27,128.26,34.60885095]
[1742218533577,3.67,128.27,128.26,26.81225095]
[1742218533801,3.67,128.27,128.26,37.59056195]
[1742218533946,3.67,128.27,128.23,50.64495931]
[1742218534156,26.81225095,128.26,128.23,10.778311]
[1742218534478,26.81225095,128.25,128.2,26.81225095]
[1742218534673,26.81225095,128.23,128.22,21.15378124]
[1742218534875,0.03,128.23,128.22,21.15378124]
[1742218535169,26.84225095,128.23,128.22,21.15378124]
[1742218535380,34.64065095,128.23,128.22,21.15378124]
[1742218535678,26.84225095,128.23,128.22,21.15378124]
[1742218535894,26.84225095,128.23,128.22,58.54507869]
[1742218536394,0.03,128.23,128.22,58.54507869]
[1742218536768,26.84225095,128.23,128.22,58.54507869]
[1742218537175,34.64065095,128.23,128.22,58.54507869]
[1742218537561,26.84225095,128.23,128.22,58.54507869]
[1742218537764,34.64065095,128.23,128.22,58.54507869]
[1742218538265,34.56225095,128.23,128.22,58.54507869]
[1742218538660,7.75,128.23,128.22,58.54507869]
[1742218538865,0.03,128.23,128.22,58.54507869]
[1742218539278,0.03,128.23,128.22,31.73074957]
[1742218539574,20.0,128.25,128.22,31.73074957]
[1742218539759,26.81225095,128.23,128.22,31.73074957]
[1742218540158,1.16039212,128.31,128.22,66.28300052]
[1742218540381,26.81225095,128.28,128.23,26.81225095]
[1742218540566,26.81225095,128.25,128.22,31.93209224]
[1742218540761,1.16039212,128.25,128.22,21.15378124]
[1742218540962,7.74,128.25,128.22,21.15378124]
[1742218541160,1.6346,128.28,128.2,0.14216157]
[1742218541373,26.81225095,128.28,128.23,26.81225095]
[1742218541694,26.81225095,128.28,128.23,37.59056195]
[1742218542058,7.76,128.3,128.24,26.81225095]
[1742218542272,26.81225095,128.31,128.26,26.81225095]
[1742218542665,26.81225095,128.32,128.27,26.81225095]
[1742218543270,26.81225095,128.3,128.26,22.72976354]
[1742218543473,34.60645095,128.3,128.26,22.72976354]
[1742218543777,26.81225095,128.28,128.26,22.72976354]
[1742218543958,26.81225095,128.28,128.26,11.95145254]
[1742218544163,7.76,128.32,128.26,11.95145254]
[1742218544164,26.81225095,128.29,128.26,11.95145254]
[1742218544377,26.81225095,128.3,128.25,26.81225095]
[1742218544975,26.81225095,128.28,128.24,10.778311]
[1742218545166,26.81225095,128.28,128.23,11.95145254]
[1742218545363,26.81225095,128.27,128.23,11.95145254]
[1742218545562,26.81225095,128.27,128.22,51.57656195]
[1742218545981,26.81225095,128.26,128.22,10.778311]
[1742218547181,26.81225095,128.25,128.2,26.81225095]
[1742218547685,26.81225095,128.29,128.24,26.81225095]
[1742218547859,29.3539,128.3,128.24,26.81225095]
[1742218548061,26.81225095,128.27,128.22,18.576811]
[1742218548279,29.3539,128.3,128.24,26.81225095]
[1742218548480,7.7931,128.32,128.25,26.81225095]
[1742218548667,26.81225095,128.3,128.25,26.81225095]
[1742218548870,26.81225095,128.31,128.26,26.81225095]
[1742218549083,26.81225095,128.32,128.27,26.81225095]
[1742218549382,6.0199,128.36,128.28,26.95441252]
[1742218549581,1.5939,128.38,128.31,26.81225095]
[1742218549582,36.99608697,128.37,128.31,26.81225095]
[1742218549788,26.81225095,128.36,128.31,26.81225095]
[1742218550484,29.20598697,128.37,128.32,26.81225095]
[1742218550695,26.81225095,128.36,128.31,45.33056195]
[1742218550864,26.81225095,128.35,128.31,18.518311]
[1742218551297,26.81225095,128.32,128.26,6.5794]
[1742218551475,7.88216157,128.36,128.27,26.81225095]
[1742218551476,0.14216157,128.35,128.27,26.81225095]
[1742218551684,26.81225095,128.33,128.28,7.7954]
[1742218551880,15.5311,128.36,128.3,26.81225095]
[1742218552074,15.5311,128.36,128.29,26.81225095]
[1742218552266,29.20598697,128.37,128.29,10.778311]
[1742218552467,29.20598697,128.37,128.34,26.81225095]
[1742218552673,29.20598697,128.37,128.34,37.59056195]
[1742218552876,56.01823792,128.37,128.34,10.778311]
[1742218553073,29.20598697,128.37,128.33,26.81225095]
[1742218553268,29.20598697,128.37,128.35,26.81225095]
[1742218553497,29.20598697,128.37,128.36,26.81225095]
[1742218553675,29.20598697,128.37,128.36,53.25239981]
[1742218553871,2.8002183,128.42,128.36,53.25239981]
[1742218553872,2.8002183,128.42,128.39,20.0]
[1742218554187,2.8002183,128.42,128.41,26.81225095]
[1742218554387,2.8002183,128.42,128.41,96.67541843]
[1742218554388,1.83e-05,128.42,128.41,96.67541843]
[1742218554587,1.5828,128.59,128.42,18.64964886]
[1742218554588,26.81225095,128.48,128.42,18.64964886]
[1742218554790,26.81225095,128.5,128.45,26.81225095]
[1742218555106,39.78815811,128.49,128.45,10.77822403]
[1742218555303,0.5,128.6,128.46,18.64964886]
[1742218555598,6.3498,128.65,128.46,18.64964886]
[1742218555599,39.78815811,128.52,128.47,7.7839]
[1742218555797,39.78815811,128.54,128.48,39.78815811]
[1742218555990,39.78815811,128.53,128.48,39.78815811]
[1742218556490,39.78815811,128.54,128.47,26.58212403]
[1742218556701,39.78815811,128.52,128.47,66.37028214]
[1742218556992,39.78815811,128.51,128.46,7.7844]
[1742218557165,39.78815811,128.5,128.46,7.7844]
[1742218557371,0.5,128.55,128.45,18.56332403]
[1742218557598,39.78815811,128.5,128.45,58.35148214]
[1742218557899,39.78815811,128.48,128.45,10.77822403]
[1742218558078,39.78815811,128.47,128.42,7.7868]
[1742218558280,39.78815811,128.46,128.41,26.60562403]
[1742218558477,39.78815811,128.44,128.38,26.60732403]
[1742218558801,39.78815811,128.44,128.38,66.39548214]
[1742218558996,38.97544422,128.62,128.47,20.5]
[1742218559296,27.7102,128.63,128.49,6.1136]
[1742218559499,39.78815811,128.57,128.5,39.78815811]
[1742218559678,39.78815811,128.56,128.5,47.56975811]
[1742218560195,39.78815811,128.57,128.51,39.78815811]
[1742218560577,39.78815811,128.56,128.5,47.56975811]
[1742218560975,39.78815811,128.55,128.49,39.78815811]
[1742218561299,39.78815811,128.51,128.47,80.8]
[1742218562192,8.26,128.53,128.47,80.8]
[1742218562393,39.78815811,128.51,128.47,80.8]
[1742218562591,39.78815811,128.51,128.44,8.26]
[1742218562890,39.78815811,128.45,128.41,80.8]
[1742218563396,39.78815811,128.42,128.36,39.78815811]
[1742218563598,39.78815811,128.46,128.35,120.58815811]
[1742218563599,39.78815811,128.41,128.35,120.58815811]
[1742218564185,39.78815811,128.37,128.32,39.78815811]
[1742218564576,8.28,128.43,128.35,39.78815811]
[1742218564894,39.78815811,128.42,128.36,39.78815811]
[1742218565198,39.78815811,128.39,128.31,88.5935]
[1742218565376,39.78815811,128.38,128.33,39.78815811]
[1742218565575,39.78815811,128.39,128.33,39.78815811]
[1742218565991,8.28,128.41,128.34,39.78815811]
[1742218566196,7.7851,128.45,128.35,39.78815811]
[1742218566378,20.0,128.42,128.35,39.78815811]
[1742218566577,39.78815811,128.41,128.36,39.78815811]
[1742218566788,39.78815811,128.41,128.35,39.78815811]
[1742218567069,39.78815811,128.4,128.34,39.78815811]
[1742218567273,39.78815811,128.38,128.32,48.06815811]
[1742218567501,8.28,128.4,128.33,39.78815811]
[1742218567674,39.78815811,128.36,128.29,47.66134831]
[1742218567870,8.32,128.41,128.34,39.78815811]
[1742218568175,39.78815811,128.38,128.33,39.78815811]
[1742218568587,39.78815811,128.37,128.32,39.78815811]
[1742218568991,7.7886,128.4,128.33,39.78815811]
[1742218569176,39.78815811,128.38,128.33,39.78815811]
[1742218569375,39.78815811,128.38,128.32,128.38085811]
[1742218569692,39.78815811,128.38,128.32,88.5927]
[1742218569891,39.78815811,128.38,128.33,39.78815811]
[1742218570403,8.32,128.41,128.34,39.78815811]
[1742218570588,8.32,128.41,128.35,39.78815811]
[1742218570780,39.78815811,128.39,128.34,120.58815811]
[1742218571198,8.32,128.41,128.34,120.58815811]
[1742218571403,245.82815811,128.42,128.37,39.78815811]
[1742218571603,19.4592,128.48,128.37,80.8]
[1742218571781,39.78815811,128.45,128.4,39.78815811]
[1742218572080,39.78815811,128.45,128.39,39.78815811]
[1742218572274,39.78815811,128.44,128.39,47.57645811]
[1742218572473,39.78815811,128.44,128.39,7.7883]
[1742218572674,39.78815811,128.41,128.37,80.8]
[1742218572875,39.78815811,128.41,128.35,128.86815811]
[1742218573099,39.78815811,128.4,128.35,128.86815811]
[1742218573312,39.78815811,128.4,128.35,136.65915811]
[1742218573607,39.78815811,128.41,128.35,136.65915811]
[1742218573779,39.78815811,128.4,128.35,136.65915811]
[1742218573979,39.78815811,128.4,128.35,96.871]
[1742218574279,39.78815811,128.39,128.35,80.8]
[1742218574477,39.78815811,128.36,128.31,80.8]
[1742218574705,39.78815811,128.33,128.31,80.8]
[1742218574999,39.78815811,128.32,128.31,80.8]
[1742218575206,48.04815811,128.34,128.24,127.10145811]
[1742218575413,48.04815811,128.34,128.25,7.7972]
[1742218575579,39.78815811,128.31,128.25,47.58535811]
[1742218575774,39.78815811,128.31,128.26,58.43780697]
[1742218576006,48.04815811,128.34,128.28,39.78815811]
[1742218576007,8.26,128.34,128.28,39.78815811]
[1742218576314,0.14216157,128.38,128.28,39.78815811]
[1742218576315,7.7905,128.36,128.29,7.7948]
[1742218576482,39.78815811,128.34,128.29,47.58295811]
[1742218576878,39.78815811,128.34,128.29,7.7948]
[1742218577101,39.78815811,128.34,128.29,47.58295811]
[1742218577290,7.79,128.37,128.29,47.58295811]
[1742218577492,39.78815811,128.35,128.3,39.78815811]
[1742218577795,39.78815811,128.36,128.3,48.04815811]
[1742218578189,39.78815811,128.35,128.3,48.04815811]
[1742218578385,39.93031968,128.4,128.31,7.7936]
[1742218578386,39.78815811,128.4,128.31,7.7936]
[1742218578593,7.7851,128.45,128.36,20.0]
[1742218578887,39.78815811,128.45,128.39,39.78815811]
[1742218579101,39.78815811,128.44,128.39,39.78815811]
[1742218579297,39.78815811,128.44,128.36,107.70964886]
[1742218579298,39.78815811,128.44,128.38,39.78815811]
[1742218579595,39.78815811,128.44,128.39,58.43780697]
[1742218579777,39.78815811,128.44,128.39,39.78815811]
[1742218579979,39.78815811,128.44,128.38,120.58815811]
[1742218580181,20.0,128.45,128.4,39.78815811]
[1742218580379,39.78815811,128.46,128.41,39.78815811]
[1742218580604,39.78815811,128.46,128.4,120.58815811]
[1742218580806,39.78815811,128.45,128.4,88.5881]
[1742218581106,39.78815811,128.45,128.4,120.58815811]
[1742218581403,206.08,128.49,128.42,39.78815811]
[1742218581588,39.78815811,128.48,128.43,39.78815811]
[1742218582605,39.78815811,128.48,128.44,7.7857]
[1742218582819,206.1,128.55,128.44,136.67234831]
[1742218583109,19.58796157,128.57,128.44,136.67234831]
[1742218583110,0.28432314,128.57,128.49,39.78815811]
[1742218583279,39.78815811,128.58,128.49,120.58815811]
[1742218583480,0.28432314,128.55,128.46,120.66664831]
[1742218583703,8.24,128.54,128.46,80.8]
[1742218583896,39.78815811,128.51,128.46,120.58815811]
[1742218584282,8.24,128.54,128.47,39.78815811]
[1742218584482,39.78815811,128.54,128.48,47.57145811]
[1742218584682,8.24,128.57,128.48,47.57145811]
[1742218584683,7.7784,128.57,128.5,39.78815811]
[1742218584982,39.78815811,128.57,128.52,39.78815811]
[1742218585182,39.78815811,128.58,128.52,39.78815811]
[1742218585382,0.03,128.6,128.55,39.78815811]
[1742218585602,0.03,128.6,128.57,39.78815811]
[1742218585990,0.03,128.6,128.58,39.78815811]
[1742218586197,0.03,128.6,128.57,432.58815811]
[1742218586490,0.03,128.6,128.59,58.43780697]
[1742218586990,0.03,128.6,128.58,39.78815811]
[1742218587197,0.03,128.6,128.57,480.71480642]
[1742218587585,0.03,128.6,128.57,440.84815811]
[1742218587782,0.03,128.6,128.57,401.06]
[1742218588102,0.03,128.6,128.57,440.84815811]
[1742218588302,0.03,128.6,128.59,39.78815811]
[1742218588612,0.03,128.6,128.59,147.01440697]
[1742218589015,2.8002183,128.68,128.6,80.77]
[1742218589224,39.78815811,128.65,128.6,80.77]
[1742218589520,39.78815811,128.63,128.58,120.55815811]
[1742218589910,8.24,128.67,128.58,80.77]
[1742218590126,8.24,128.67,128.61,39.78815811]
[1742218590516,39.78815811,128.66,128.61,39.78815811]
[1742218590703,39.78815811,128.65,128.6,39.78815811]
[1742218591111,16.012,128.67,128.61,39.78815811]
[1742218591297,16.012,128.67,128.59,7.7762]
[1742218591298,39.78815811,128.67,128.62,39.78815811]
[1742218591602,2.8002183,128.68,128.63,39.78815811]
[1742218591807,39.78815811,128.65,128.62,80.77]
[1742218592008,29.9994183,128.68,128.62,80.77]
[1742218592204,39.78815811,128.67,128.62,120.55815811]
[1742218592613,42.58837641,128.68,128.63,39.78815811]
[1742218592813,50.35967641,128.68,128.63,39.78815811]
[1742218593014,39.78815811,128.67,128.62,120.55815811]
[1742218593214,39.78815811,128.66,128.62,80.77]
[1742218593527,39.78815811,128.65,128.62,80.77]
[1742218593727,39.78815811,128.65,128.6,39.78815811]
[1742218593923,39.78815811,128.64,128.59,160.42480642]
[1742218594116,29.9995183,128.68,128.59,128.33475811]
[1742218594314,39.78815811,128.65,128.59,128.33475811]
[1742218594628,39.78815811,128.64,128.59,128.33475811]
[1742218594823,39.78815811,128.62,128.59,80.77]
[1742218595205,39.78815811,128.63,128.59,80.77]
[1742218595405,39.78815811,128.64,128.58,47.56525811]
[1742218595613,8.2,128.66,128.57,128.41434831]
[1742218595614,39.78815811,128.62,128.57,128.41434831]
[1742218595831,39.78815811,128.62,128.57,168.20250642]
[1742218596026,39.78815811,128.62,128.57,160.42480642]
[1742218596228,39.78815811,128.62,128.57,168.20260642]
[1742218596628,39.78815811,128.62,128.57,160.42480642]
[1742218596828,39.78815811,128.61,128.57,120.63664831]
[1742218597028,39.78815811,128.62,128.57,39.78815811]
[1742218597227,39.78815811,128.63,128.57,39.78815811]
[1742218597530,39.78815811,128.64,128.59,39.78815811]
[1742218598132,39.78815811,128.63,128.57,80.77]
[1742218598433,39.78815811,128.62,128.57,120.55815811]
[1742218598735,15.9724,128.66,128.59,39.78815811]
[1742218598930,39.78815811,128.65,128.59,120.62115811]
[1742218599231,0.03,128.67,128.61,39.78815811]
[1742218599422,39.81815811,128.67,128.62,39.78815811]
[1742218599633,0.03,128.67,128.65,39.78815811]
[1742218599826,0.03,128.67,128.66,39.78815811]
[1742218600043,0.03,128.67,128.66,120.55815811]
[1742218600420,2.8002183,128.68,128.66,139.20780697]
[1742218600619,2.8002183,128.68,128.67,55.73995811]
[1742218600845,2.8002183,128.68,128.67,136.50995811]
[1742218601023,1.83e-05,128.68,128.67,155.58609168]
[1742218601210,0.0001,128.72,128.68,19.07613357]
[1742218601416,8.18,128.85,128.72,0.42648471]
[1742218601634,39.78815811,128.83,128.78,39.78815811]
[1742218601940,7.7591,128.88,128.79,39.78815811]
[1742218602118,39.78815811,128.85,128.8,39.78815811]
[1742218602435,11.74483665,128.92,128.84,39.78815811]
[1742218602618,11.74483665,128.92,128.84,351.78815811]
[1742218602823,39.78815811,128.89,128.84,351.78815811]
[1742218603027,19.50173665,128.92,128.82,128.81664831]
[1742218603219,20.0,128.89,128.8,80.77]
[1742218603543,39.78815811,128.82,128.77,48.00815811]
[1742218603715,40.43031968,128.88,128.75,47.55505811]
[1742218603716,39.78815811,128.8,128.75,47.55505811]
[1742218603917,39.78815811,128.79,128.75,39.78815811]
[1742218604144,39.78815811,128.8,128.75,39.78815811]
[1742218604442,39.78815811,128.77,128.71,135.48284831]
[1742218604739,39.78815811,128.74,128.69,39.78815811]
[1742218604943,39.78815811,128.76,128.71,39.78815811]
[1742218605149,16.0047,128.79,128.72,39.78815811]
[1742218605342,48.06815811,128.82,128.74,39.78815811]
[1742218605538,39.78815811,128.78,128.73,39.78815811]
[1742218606245,39.78815811,128.79,128.73,120.63664831]
[1742218606547,39.78815811,128.81,128.76,39.78815811]
[1742218606848,8.28,128.82,128.76,39.78815811]
[1742218606849,39.78815811,128.82,128.76,39.78815811]
[1742218607450,39.78815811,128.81,128.76,39.78815811]
[1742218607651,7.7621,128.83,128.75,80.77]
[1742218607652,39.78815811,128.8,128.75,80.77]
[1742218607958,39.78815811,128.8,128.75,120.55815811]
[1742218608163,7.7603,128.86,128.75,80.77]
[1742218608334,39.78815811,128.81,128.76,39.78815811]
[1742218608729,39.78815811,128.81,128.75,80.77]
[1742218609028,39.78815811,128.84,128.78,39.78815811]
[1742218609242,39.78815811,128.87,128.82,39.78815811]
[1742218609439,244.3637,128.92,128.83,39.78815811]
[1742218609440,39.78815811,128.88,128.83,39.78815811]
[1742218609638,8.24,128.9,128.82,351.78815811]
[1742218609855,39.78815811,128.87,128.82,351.78815811]
[1742218610043,39.78815811,128.86,128.82,312.0]
[1742218610243,39.78815811,128.85,128.8,8.24]
[1742218610555,39.78815811,128.85,128.8,39.78815811]
[1742218610728,8.24,128.9,128.81,39.78815811]
[1742218610932,244.3637,128.92,128.86,39.78815811]
[1742218610933,7.7572,128.92,128.86,39.78815811]
[1742218611238,47.54535811,128.92,128.87,39.78815811]
[1742218611429,39.78815811,128.92,128.87,39.78815811]
[1742218611625,39.78815811,128.92,128.86,48.08815811]
[1742218611824,39.78815811,128.92,128.87,39.78815811]
[1742218612029,8.1086493,128.93,128.89,39.78815811]
[1742218612229,8.1086493,128.93,128.86,89.07]
[1742218612230,8.1086493,128.93,128.9,39.78815811]
[1742218612441,8.1086493,128.93,128.89,39.78815811]
[1742218612645,39.78815811,128.92,128.86,168.72480642]
[1742218612832,8.1086493,128.93,128.87,26.40934886]
[1742218613149,8.1086493,128.93,128.9,39.78815811]
[1742218613331,8.1086493,128.93,128.92,39.78815811]
[1742218613840,8.1086493,128.93,128.9,129.09880988]
[1742218614043,8.1086493,128.93,128.92,39.78815811]
[1742218614249,8.1086493,128.93,128.9,80.77]
[1742218614632,8.1086493,128.93,128.9,120.55815811]
[1742218614853,8.1086493,128.93,128.9,80.77]
[1742218615030,0.03,128.92,128.9,96.8478]
[1742218615338,0.03,128.92,128.9,128.87815811]
[1742218615542,0.03,128.92,128.9,80.77]
[1742218615737,0.5,129.09,128.93,0.14216157]
[1742218615970,8.96,129.08,128.94,18.933972]
[1742218616133,8.96,129.08,128.97,39.78815811]
[1742218616134,39.78815811,129.02,128.97,39.78815811]
[1742218616339,7.7505,129.03,128.97,39.78815811]
[1742218616645,59.15925811,129.06,128.94,98.58877842]
[1742218616646,39.78815811,129.01,128.96,39.78815811]
[1742218616947,39.78815811,129.06,128.98,47.54125811]
[1742218617150,47.53865811,129.03,128.97,39.78815811]
[1742218617450,39.78815811,129.06,128.96,440.39074831]
[1742218617451,47.53905811,129.02,128.96,432.63664831]
[1742218617633,39.78815811,129.01,128.96,432.55815811]
[1742218617834,19.3688,129.08,128.98,39.93031968]
[1742218618039,39.78815811,129.06,128.98,79.65480642]
[1742218618239,0.5,129.1,128.98,79.65480642]
[1742218618440,39.78815811,129.05,128.98,39.86664831]
[1742218618641,39.78815811,129.06,128.98,98.87310156]
[1742218618939,47.53655811,129.06,128.98,188.94608405]
[1742218619255,39.78815811,129.07,128.98,187.39620156]
[1742218619433,7.7465,129.09,128.99,0.14216157]
[1742218619635,7.7447,129.12,129.05,39.78815811]
[1742218619843,39.78815811,129.1,129.04,8.54]
[1742218620041,7.7447,129.12,129.05,39.78815811]
[1742218620242,66.89465811,129.12,129.04,39.86664831]
[1742218620442,39.78815811,129.07,129.02,120.63664831]
[1742218620658,39.78815811,129.06,129.01,39.78815811]
[1742218620857,39.78815811,129.05,129.0,39.78815811]
[1742218621162,39.78815811,129.01,128.96,39.86664831]
[1742218621458,35.6413,129.05,128.96,39.78815811]
[1742218621845,39.78815811,129.02,128.96,39.78815811]
[1742218622042,39.78815811,128.99,128.94,39.78815811]
[1742218622248,39.78815811,128.98,128.93,39.86664831]
[1742218622456,39.78815811,128.97,128.92,6.2551]
[1742218622661,39.78815811,128.98,128.92,46.04325811]
[1742218622962,39.78815811,128.95,128.89,39.86664831]
[1742218623173,39.78815811,128.94,128.87,46.06194831]
[1742218623472,39.78815811,128.94,128.88,39.78815811]
[1742218623642,39.78815811,128.94,128.89,39.78815811]
[1742218623844,39.78815811,128.93,128.88,39.78815811]
[1742218624041,39.78815811,128.91,128.82,46.38465811]
[1742218624251,39.78815811,128.88,128.82,86.25130642]
[1742218624643,39.78815811,128.86,128.81,39.78815811]
[1742218624866,39.78815811,128.84,128.77,127.23314831]
[1742218625041,39.78815811,128.84,128.77,120.55815811]
[1742218625042,47.55085811,128.82,128.77,120.55815811]
[1742218625436,47.55085811,128.82,128.75,39.86664831]
[1742218625645,47.55085811,128.82,128.75,39.78815811]
[1742218625646,39.78815811,128.8,128.75,39.78815811]
[1742218626155,39.78815811,128.81,128.75,39.78815811]
[1742218626364,39.78815811,128.8,128.73,128.40474831]
[1742218626542,39.78815811,128.81,128.76,39.78815811]
[1742218626938,7.7623,128.83,128.77,312.0]
[1742218627139,39.78815811,128.78,128.72,0.063]
[1742218627338,8.48,128.78,128.74,39.78815811]
[1742218627545,8.52,128.84,128.77,39.78815811]
[1742218627743,39.78815811,128.82,128.74,67.1]
[1742218627943,39.78815811,128.82,128.76,39.78815811]
[1742218628548,8.52,128.84,128.76,39.78815811]
[1742218628750,8.52,128.84,128.77,39.78815811]
[1742218628952,39.78815811,128.85,128.79,39.78815811]
[1742218629259,39.78815811,128.82,128.74,18.64964886]
[1742218629464,39.78815811,128.81,128.76,39.78815811]
[1742218629645,39.78815811,128.79,128.74,67.1]
[1742218629846,39.78815811,128.8,128.75,39.78815811]
[1742218630239,39.78815811,128.78,128.73,187.65815811]
[1742218630445,48.30815811,128.82,128.74,39.78815811]
[1742218630764,16.2832,128.82,128.75,39.78815811]
[1742218630973,39.78815811,128.76,128.72,0.063]
[1742218631259,0.5,128.81,128.72,7.8312]
[1742218631260,0.28432314,128.81,128.72,7.8312]
[1742218631464,0.14216157,128.83,128.77,39.78815811]
[1742218631642,0.14216157,128.91,128.81,39.78815811]
[1742218631847,8.04162314,128.91,128.82,8.76]
[1742218632044,7.89946157,128.91,128.82,8.76]
[1742218632344,7.7568,128.92,128.83,39.78815811]
[1742218632543,18.1226,128.93,128.85,39.78815811]
[1742218632752,18.1226,128.93,128.81,8.78]
[1742218632753,39.78815811,128.9,128.81,8.78]
[1742218632941,39.78815811,128.9,128.84,39.78815811]
[1742218633452,39.78815811,128.91,128.85,39.78815811]
[1742218633643,18.1226,128.93,128.82,39.78815811]
[1742218633644,18.1226,128.93,128.86,39.78815811]
[1742218633971,0.03,128.93,128.88,39.78815811]
[1742218634170,0.03,128.93,128.89,39.78815811]
[1742218634668,39.81815811,128.93,128.86,7.7603]
[1742218634865,39.78815811,128.92,128.85,156.65]
[1742218635067,0.03,128.93,128.89,39.78815811]
[1742218635257,0.03,128.93,128.86,26.40994886]
[1742218635258,0.03,128.93,128.91,39.78815811]
[1742218635464,0.03,128.93,128.92,39.78815811]
[1742218635772,0.03,128.93,128.88,39.78815811]
[1742218635773,0.03,128.93,128.91,39.78815811]
[1742218636149,0.03,128.93,128.9,39.78815811]
[1742218636571,0.03,128.93,128.89,39.78815811]
[1742218636770,0.03,128.93,128.87,39.78815811]
[1742218636950,39.78815811,128.92,128.86,47.54805811]
[1742218637151,39.78815811,128.92,128.86,39.78815811]
[1742218637350,8.81,128.93,128.86,47.54825811]
[1742218637546,39.78815811,128.92,128.86,47.54825811]
[1742218637767,8.81,128.93,128.87,39.78815811]
[1742218637958,39.78815811,128.92,128.87,39.78815811]
[1742218638158,8.81,128.93,128.88,39.78815811]
[1742218638445,8.81,128.93,128.85,8.78]
[1742218638767,39.78815811,128.86,128.8,155.6337]
[1742218638968,39.78815811,128.85,128.8,195.42185811]
[1742218639167,39.78815811,128.85,128.8,187.65815811]
[1742218639354,8.78,128.87,128.82,39.78815811]
[1742218639664,8.78,128.87,128.8,155.6338]
[1742218639665,39.78815811,128.85,128.8,88.5338]
[1742218639849,39.78815811,128.85,128.8,128.32195811]
[1742218640257,39.78815811,128.86,128.81,39.78815811]
[1742218640462,48.56815811,128.87,128.81,39.78815811]
[1742218640651,39.78815811,128.85,128.8,88.5968]
[1742218640848,39.78815811,128.85,128.8,7.8268]
[1742218641247,39.78815811,128.83,128.8,0.063]
[1742218641448,39.78815811,128.81,128.8,0.063]
[1742218641648,7.7573,128.91,128.81,80.77]
[1742218641858,7.7573,128.91,128.82,39.78815811]
[1742218641859,39.78815811,128.88,128.82,39.78815811]
[1742218642265,39.78815811,128.86,128.8,128.38455811]
[1742218642456,39.78815811,128.86,128.8,88.5964]
[1742218642665,8.76,128.87,128.81,39.78815811]
[1742218643066,8.76,128.87,128.82,39.78815811]
[1742218643392,39.78815811,128.85,128.8,88.5964]
[1742218643599,8.76,128.87,128.8,0.063]
[1742218643600,39.78815811,128.82,128.8,0.063]
[1742218643881,16.80402314,128.87,128.8,0.063]
[1742218643882,8.74,128.83,128.8,0.063]
[1742218644184,39.78815811,128.81,128.8,0.063]
[1742218644475,47.55145811,128.81,128.8,0.063]
[1742218644857,39.78815811,128.76,128.73,80.77]
[1742218645065,8.74,128.79,128.72,0.063]
[1742218645265,39.78815811,128.76,128.72,0.063]
[1742218646079,8.74,128.79,128.72,0.063]
[1742218646080,39.78815811,128.74,128.72,0.063]
[1742218646416,8.74,128.79,128.72,0.063]